bitfinex/quotes_SOLUSD_20250226
["timestamp","ask_amount","ask_price","bid_price","bid_amount"]
[1740535667823,0.063,142.55,142.47,108.06843694]
[1740535668033,0.063,142.55,142.48,18.90062886]
[1740535668729,0.063,142.55,142.48,19.90053784]
[1740535669127,0.063,142.55,142.49,7.018]
[1740535672832,0.063,142.55,142.49,89.49022796]
[1740535674932,0.063,142.55,142.5,3.51986024]
[1740535675122,0.063,142.55,142.5,93.0094882]
[1740535678736,0.063,142.55,142.5,82.47222796]
[1740535678934,0.063,142.55,142.48,82.47222796]
[1740535682515,0.063,142.55,142.48,89.49052796]
[1740535683533,0.063,142.55,142.49,19.90053784]
[1740535683750,0.063,142.55,142.52,20.99990898]
[1740535683920,0.063,142.55,142.52,27.43990898]
[1740535685159,0.063,142.55,142.53,7.016]
[1740535685367,0.063,142.55,142.53,89.48822796]
[1740535687851,0.063,142.55,142.54,1.25088898]
[1740535688053,0.063,142.56,142.55,1.99987694]
[1740535689052,0.063,142.56,142.55,7.015]
[1740535689248,0.063,142.56,142.55,8.14039898]
[1740535689449,0.063,142.56,142.55,26.91553784]
[1740535689757,0.063,142.56,142.55,27.9155058]
[1740535691058,0.063,142.63,142.56,19.90053784]
[1740535691246,0.063,142.63,142.57,6.42]
[1740535693561,0.063,142.63,142.58,7.0136]
[1740535694456,0.063,142.63,142.59,19.90053784]
[1740535694844,0.063,142.63,142.61,18.90062886]
[1740535695036,0.063,142.63,142.62,6.42]
[1740535695241,0.063,142.63,142.62,89.01771796]
[1740535695442,0.063,142.63,142.62,114.80445682]
[1740535696141,0.063,142.69,142.62,116.80433376]
[1740535696341,0.063,142.69,142.63,19.90053784]
[1740535696864,0.063,142.69,142.63,20.9005058]
[1740535697181,0.063,142.69,142.63,103.37273376]
[1740535697555,0.063,142.69,142.64,7.0106]
[1740535697960,0.063,142.69,142.64,82.47222796]
[1740535698861,6.5118,142.67,142.62,82.47222796]
[1740535699261,6.5118,142.67,142.58,93.07892036]
[1740535699467,7.0096,142.66,142.58,93.07892036]
[1740535700367,6.5118,142.67,142.58,110.61292036]
[1740535700673,1.6627,142.68,142.6,0.99990898]
[1740535700979,1.6627,142.68,142.62,20.0]
[1740535701184,1.6627,142.68,142.62,102.47222796]
[1740535701485,1.6627,142.68,142.62,108.89222796]
[1740535701779,0.063,142.69,142.63,25.53880898]
[1740535701958,0.063,142.69,142.63,7.0111]
[1740535702559,0.063,142.69,142.63,10.49328636]
[1740535704983,0.063,142.69,142.62,108.89222796]
[1740535705475,0.063,142.69,142.62,115.90362796]
[1740535705658,0.063,142.69,142.62,95.90362796]
[1740535706466,0.063,142.69,142.62,99.3391664]
[1740535706883,0.063,142.69,142.62,82.47222796]
[1740535706884,81.163,142.69,142.62,82.47222796]
[1740535707071,82.7368,142.68,142.59,82.47222796]
[1740535707265,82.7368,142.68,142.55,6.42]
[1740535707266,18.64964886,142.66,142.55,95.90712796]
[1740535707582,6.42,142.65,142.63,0.03]
[1740535708189,1.636,142.64,142.55,82.47222796]
[1740535708371,82.736,142.64,142.55,82.47222796]
[1740535708565,82.736,142.64,142.55,89.48722796]
[1740535708967,7.0111,142.63,142.55,89.48722796]
[1740535709172,82.736,142.64,142.56,18.90062886]
[1740535709698,1.636,142.64,142.56,101.37285682]
[1740535710371,1.636,142.64,142.57,7.014]
[1740535710676,1.636,142.64,142.56,89.48662796]
[1740535710677,8.6466,142.64,142.56,89.48662796]
[1740535711179,1.636,142.64,142.56,89.48662796]
[1740535711768,1.636,142.64,142.57,18.90062886]
[1740535712087,1.6604,142.68,142.59,26.42459682]
[1740535712288,0.063,142.69,142.63,7.0111]
[1740535712469,0.063,142.69,142.63,95.90332796]
[1740535713668,0.063,142.69,142.65,7.0101]
[1740535714392,0.063,142.69,142.63,95.90282796]
[1740535714762,0.063,142.69,142.63,88.89222796]
[1740535714972,0.063,142.69,142.63,82.47222796]
[1740535715867,7.0711,142.69,142.63,82.47222796]
[1740535716569,24.5915,142.69,142.63,82.47222796]
[1740535717383,105.6915,142.69,142.59,88.91222796]
[1740535717579,105.6915,142.69,142.59,95.92522796]
[1740535719870,105.6915,142.69,142.62,0.03]
[1740535720178,105.6915,142.69,142.62,82.50222796]
[1740535723396,24.5915,142.69,142.62,82.50222796]
[1740535723689,27.01,142.66,142.62,82.50222796]
[1740535724380,7.01,142.66,142.62,82.50222796]
[1740535724792,24.5915,142.69,142.62,82.50222796]
[1740535727993,7.0711,142.69,142.62,82.50222796]
[1740535728576,88.1711,142.69,142.62,0.03]
[1740535728783,91.4141493,142.69,142.62,0.03]
[1740535728975,6.44,142.68,142.62,0.03]
[1740535729900,1.5787,142.67,142.62,0.03]
[1740535730884,7.0096,142.66,142.62,0.03]
[1740535731089,7.0096,142.66,142.62,82.50222796]
[1740535733908,24.5337,142.66,142.62,82.50222796]
[1740535734113,20.0,142.63,142.62,0.03]
[1740535734421,81.1,142.64,142.57,82.47222796]
[1740535734885,6.44,142.63,142.57,82.47222796]
[1740535735291,24.5406,142.62,142.57,82.47222796]
[1740535736496,7.0126,142.6,142.57,82.47222796]
[1740535737603,7.0126,142.6,142.55,129.88]
[1740535738910,24.5406,142.62,142.55,129.88]
[1740535739709,7.0116,142.62,142.55,219.36712796]
[1740535740411,7.0098,142.66,142.57,0.99996796]
[1740535740596,7.0092,142.67,142.58,21.47699682]
[1740535740791,7.0092,142.67,142.59,6.3168]
[1740535740992,7.0092,142.67,142.58,1.5764]
[1740535740993,17.5229,142.67,142.58,1.5764]
[1740535742307,17.5229,142.67,142.58,8.5899]
[1740535743194,7.0086,142.68,142.59,18.90062886]
[1740535744185,7.0713,142.69,142.59,101.37285682]
[1740535745201,0.063,142.69,142.61,0.25098]
[1740535745406,0.063,142.69,142.62,6.42]
[1740535745606,0.063,142.69,142.62,88.89222796]
[1740535747293,0.063,142.69,142.62,95.90352796]
[1740535747893,0.063,142.69,142.66,20.0]
[1740535748197,0.063,142.69,142.66,82.47222796]
[1740535750192,0.063,142.69,142.66,89.48172796]
[1740535752411,0.063,142.69,142.66,82.47222796]
[1740535753694,0.063,142.69,142.64,82.47222796]
[1740535754508,0.063,142.69,142.62,82.47222796]
[1740535754509,81.163,142.69,142.62,82.47222796]
[1740535754911,20.0,142.66,142.62,82.47222796]
[1740535755823,7.0101,142.65,142.61,6.42]
[1740535756025,7.0101,142.65,142.58,84.15072796]
[1740535756225,24.5355,142.65,142.58,84.15072796]
[1740535756929,20.0,142.62,142.58,0.03]
[1740535757291,7.0121,142.61,142.58,0.03]
[1740535757702,27.0117,142.62,142.58,0.03]
[1740535759830,7.0106,142.64,142.58,0.03]
[1740535761420,7.0106,142.64,142.58,82.50222796]
[1740535761597,100.2821,142.68,142.58,82.50222796]
[1740535761800,7.0091,142.67,142.59,6.4]
[1740535763603,7.0091,142.67,142.6,7.0126]
[1740535764116,7.0091,142.67,142.61,1.5823]
[1740535764321,7.0091,142.67,142.61,84.05452796]
[1740535764920,0.063,142.69,142.61,84.05452796]
[1740535764921,7.0088,142.68,142.61,84.05452796]
[1740535765122,0.063,142.69,142.62,25.21102886]
[1740535765331,0.063,142.69,142.62,108.68322478]
[1740535765621,0.063,142.69,142.63,24.5389]
[1740535765803,0.063,142.69,142.65,18.90062886]
[1740535766003,0.063,142.69,142.65,101.37285682]
[1740535766319,0.063,142.69,142.65,82.47222796]
[1740535768404,0.063,142.69,142.65,89.48202796]
[1740535770829,0.063,142.69,142.66,25.90992886]
[1740535771728,0.063,142.69,142.66,7.0093]
[1740535773002,0.063,142.69,142.66,108.13117682]
[1740535773306,0.063,142.69,142.67,18.90062886]
[1740535774127,0.063,142.69,142.68,7.0086]
[1740535774325,0.063,142.69,142.68,89.48082796]
[1740535774832,0.063,142.69,142.68,109.89185682]
[1740535783011,0.063,142.69,142.68,82.47222796]
[1740535788741,0.063,142.69,142.65,82.47222796]
[1740535788941,0.063,142.69,142.62,142.68589]
[1740535788942,0.063,142.69,142.62,212.38222796]
[1740535789146,20.0,142.65,142.62,0.03]
[1740535789325,24.5337,142.66,142.62,0.03]
[1740535789326,26.1646,142.66,142.62,0.03]
[1740535790550,20.0,142.63,142.62,0.03]
[1740535791042,26.0402,142.63,142.62,0.03]
[1740535792249,33.0513,142.63,142.62,0.03]
[1740535794154,51.70094886,142.63,142.62,0.03]
[1740535794734,33.0513,142.63,142.62,0.03]
[1740535795722,51.70094886,142.63,142.62,0.03]
[1740535796122,33.0513,142.63,142.62,0.03]
[1740535798844,51.70094886,142.63,142.62,0.03]
[1740535799033,33.0513,142.63,142.62,0.03]
[1740535800450,27.0111,142.63,142.62,0.03]
[1740535805353,20.0,142.63,142.62,0.03]
[1740535806025,7.0102,142.65,142.62,0.03]
[1740535806233,81.1,142.67,142.62,0.03]
[1740535806432,6.36,142.68,142.62,82.50222796]
[1740535806637,7.0093,142.67,142.62,82.50222796]
[1740535807154,20.0,142.64,142.62,82.50222796]
[1740535807351,81.1,142.66,142.62,0.03]
[1740535807855,24.5322,142.67,142.62,0.03]
[1740535808732,20.0,142.64,142.62,0.03]
[1740535808932,27.011,142.64,142.62,0.03]
[1740535811853,20.0,142.6,142.58,0.03]
[1740535812054,119.87513886,142.59,142.55,0.03]
[1740535812265,20.0,142.56,142.55,0.03]
[1740535812453,20.0,142.57,142.55,0.03]
[1740535813855,7.0145,142.56,142.55,0.03]
[1740535814162,7.0131,142.59,142.55,0.03]
[1740535815254,18.64964886,142.58,142.55,0.03]
[1740535815757,20.0,142.56,142.55,0.03]
[1740535816053,27.0145,142.56,142.55,0.03]
[1740535816254,7.0142,142.57,142.55,0.03]
[1740535816836,7.0126,142.6,142.55,0.03]
[1740535818556,7.0121,142.61,142.55,88.9356]
[1740535818742,7.0111,142.63,142.55,88.9356]
[1740535819861,7.0111,142.63,142.55,95.9504]
[1740535820360,7.0111,142.63,142.55,88.9356]
[1740535821842,7.0111,142.63,142.55,95.9505]
[1740535823246,7.0111,142.63,142.55,88.9356]
[1740535823553,18.64964886,142.62,142.55,88.9356]
[1740535823957,7.0121,142.61,142.55,88.9356]
[1740535824964,7.0121,142.61,142.55,95.9505]
[1740535825242,7.0121,142.61,142.56,1.5732]
[1740535825455,88.1117,142.62,142.56,1.5732]
[1740535825839,81.1,142.62,142.56,1.5732]
[1740535826057,81.1,142.62,142.57,7.014]
[1740535826248,0.063,142.64,142.57,89.914]
[1740535826462,0.063,142.64,142.58,18.90062886]
[1740535826643,0.063,142.64,142.58,101.80062886]
[1740535826843,7.0738,142.64,142.58,82.9]
[1740535828065,0.063,142.64,142.59,7.0131]
[1740535828651,0.063,142.64,142.61,18.90062886]
[1740535828844,0.063,142.64,142.61,101.80062886]
[1740535829048,0.063,142.64,142.61,82.9]
[1740535830372,0.063,142.64,142.62,7.0116]
[1740535830884,0.063,142.64,142.6,7.8398]
[1740535831174,0.063,142.64,142.6,1.5325]
[1740535832375,0.063,142.64,142.57,1.5914]
[1740535832376,43.24984886,142.64,142.57,1.5914]
[1740535832576,20.0,142.61,142.57,1.5914]
[1740535834975,7.0126,142.6,142.57,1.5914]
[1740535835351,27.0123,142.61,142.57,1.5914]
[1740535838572,7.0123,142.61,142.57,1.5914]
[1740535839074,17.5294,142.62,142.57,1.5914]
[1740535842459,7.0111,142.63,142.57,1.5914]
[1740535843290,24.5389,142.63,142.57,1.5914]
[1740535845483,7.0111,142.63,142.57,1.5914]
[1740535845686,7.0111,142.63,142.57,91.5054]
[1740535845870,7.0738,142.64,142.57,91.5054]
[1740535846073,7.0738,142.64,142.57,97.8654]
[1740535846390,0.063,142.64,142.57,97.8654]
[1740535846767,0.063,142.64,142.58,18.90062886]
[1740535847570,0.063,142.64,142.59,7.0131]
[1740535851071,0.063,142.64,142.58,82.9]
[1740535851283,20.0,142.62,142.56,82.93]
[1740535851787,20.0,142.61,142.56,82.93]
[1740535852683,7.0126,142.6,142.56,82.93]
[1740535854978,7.0116,142.62,142.56,82.93]
[1740535855186,7.0116,142.62,142.56,89.9445]
[1740535855381,81.1,142.63,142.56,89.9445]
[1740535855588,7.0112,142.63,142.57,0.12549]
[1740535856093,7.0112,142.63,142.56,89.9445]
[1740535856396,0.063,142.64,142.56,89.9445]
[1740535856888,0.063,142.64,142.57,0.12549]
[1740535857805,0.063,142.64,142.58,7.0136]
[1740535858199,0.063,142.64,142.59,0.12549]
[1740535858380,0.063,142.64,142.59,83.02549]
[1740535858874,0.063,142.64,142.6,1.5103]
[1740535860101,0.063,142.64,142.6,84.4103]
[1740535860283,0.063,142.64,142.6,91.4224]
[1740535861805,0.063,142.64,142.61,7.13749]
[1740535863980,0.063,142.64,142.63,0.12549]
[1740535864181,0.063,142.64,142.63,108.03513886]
[1740535864398,0.063,142.64,142.63,108.16062886]
[1740535865102,0.063,142.69,142.64,0.12549]
[1740535865407,0.063,142.69,142.66,0.12549]
[1740535865613,0.063,142.69,142.67,1.5249]
[1740535865926,0.063,142.69,142.68,7.0086]
[1740535867608,0.063,142.69,142.67,91.4339]
[1740535870612,24.76623005,142.76,142.67,91.4339]
[1740535870999,7.0047,142.76,142.67,91.4339]
[1740535871203,14.2396,142.78,142.68,18.90062886]
[1740535871410,1.676,142.78,142.7,18.90062886]
[1740535871620,0.063,142.78,142.72,18.90062886]
[1740535871797,0.063,142.78,142.75,0.12549]
[1740535872002,0.063,142.78,142.75,83.02549]
[1740535872216,0.063,142.78,142.77,0.12549]
[1740535872398,0.063,142.78,142.77,8.18979]
[1740535872593,0.063,142.79,142.77,110.86483784]
[1740535872800,0.063,142.79,142.78,25.13513886]
[1740535872998,0.063,142.79,142.78,108.03513886]
[1740535873318,0.063,142.79,142.78,115.03883886]
[1740535873725,0.063,142.79,142.78,89.26]
[1740535873932,0.063,142.79,142.78,82.9]
[1740535874725,20.063,142.79,142.74,82.9]
[1740535875016,18.64964886,142.78,142.71,82.9]
[1740535875424,7.0037,142.78,142.71,82.9]
[1740535876001,25.65334886,142.78,142.71,82.9]
[1740535876200,18.64964886,142.77,142.7,6.34]
[1740535876429,18.64964886,142.75,142.69,82.9]
[1740535876614,6.2902,142.76,142.66,223.74172046]
[1740535877204,18.64964886,142.75,142.66,223.74172046]
[1740535877424,18.64964886,142.73,142.66,223.74172046]
[1740535878410,105.62,142.74,142.66,212.76]
[1740535879315,7.0067,142.72,142.66,212.76]
[1740535882744,1.5058,142.75,142.67,0.12549]
[1740535882930,6.2902,142.76,142.67,18.90062886]
[1740535883237,7.0048,142.76,142.67,101.80062886]
[1740535884125,7.0042,142.77,142.69,0.12549]
[1740535884435,7.0042,142.77,142.69,6.46549]
[1740535884643,81.163,142.78,142.69,6.46549]
[1740535884818,7.0668,142.78,142.69,90.93899]
[1740535885823,7.0668,142.78,142.7,7.0077]
[1740535886125,7.0668,142.78,142.7,89.9077]
[1740535887035,0.12549,142.74,142.66,82.93]
[1740535887225,81.1,142.74,142.66,82.93]
[1740535888317,7.0062,142.73,142.66,82.93]
[1740535892814,7.0062,142.73,142.67,18.90062886]
[1740535893430,24.5148,142.77,142.67,101.80062886]
[1740535893627,24.5148,142.77,142.67,108.80962886]
[1740535894724,17.5106,142.77,142.67,108.80962886]
[1740535895715,7.0667,142.78,142.71,0.12549]
[1740535895930,7.0667,142.78,142.71,83.02549]
[1740535896646,7.0667,142.78,142.71,82.9]
[1740535896941,0.063,142.78,142.71,82.9]
[1740535901421,0.063,142.78,142.72,3.44287693]
[1740535901620,0.063,142.78,142.72,86.34287693]
[1740535904048,0.063,142.78,142.73,0.12549]
[1740535904427,0.063,142.78,142.73,101.80062886]
[1740535905350,0.063,142.78,142.75,0.12549]
[1740535905550,0.063,142.78,142.75,83.02549]
[1740535906255,0.063,142.78,142.76,1.5612]
[1740535906456,0.063,142.78,142.76,8.2035]
[1740535907160,0.063,142.78,142.77,25.90482886]
[1740535907348,0.063,142.79,142.77,108.80482886]
[1740535907534,0.063,142.79,142.77,114.34195266]
[1740535907851,0.063,142.84,142.77,131.85255266]
[1740535908031,0.063,142.84,142.81,18.64964886]
[1740535908233,0.063,142.84,142.82,0.12549]
[1740535909339,0.063,142.84,142.83,7.0013]
[1740535909884,0.063,142.84,142.81,89.24]
[1740535910170,0.063,142.84,142.81,96.2421]
[1740535910958,0.063,142.84,142.81,82.9]
[1740535916378,0.063,142.84,142.81,89.9022]
[1740535916744,0.063,142.84,142.81,82.9]
[1740535916949,0.063,142.84,142.83,1.76099]
[1740535917167,0.063,142.87,142.85,0.12549]
[1740535917390,0.063,142.87,142.85,83.02549]
[1740535917751,0.063,142.87,142.86,18.77513886]
[1740535918073,0.063,142.93,142.9,0.12549]
[1740535918270,0.063,142.93,142.9,82.96249]
[1740535919175,0.063,142.93,142.9,84.59269]
[1740535919383,0.063,142.93,142.9,84.4672]
[1740535921274,0.063,142.93,142.9,82.837]
[1740535922678,0.063,142.93,142.9,89.8348]
[1740535922878,0.063,142.93,142.9,82.837]
[1740535928888,0.063,142.93,142.9,89.8348]
[1740535929940,0.063,142.93,142.92,0.12549]
[1740535930081,0.063,142.93,142.92,108.34972886]
[1740535930986,0.063,142.93,142.92,89.4491]
[1740535931299,0.063,142.93,142.92,89.57459]
[1740535931596,0.063,142.93,142.92,108.34972886]
[1740535932007,0.063,142.93,142.92,115.34662886]
[1740535932206,0.063,142.93,142.92,86.41491981]
[1740535932668,0.063,142.93,142.92,82.837]
[1740535935704,0.063,142.93,142.89,82.837]
[1740535935905,18.71264886,142.93,142.89,82.837]
[1740535936084,6.9969,142.92,142.89,82.837]
[1740535937285,18.64964886,142.91,142.87,0.03]
[1740535937497,18.64964886,142.91,142.87,82.867]
[1740535938527,24.4892,142.92,142.87,82.867]
[1740535938823,6.9969,142.92,142.87,82.867]
[1740535941433,7.0594,142.93,142.87,82.867]
[1740535942425,0.063,142.92,142.87,82.867]
[1740535946403,0.063,142.92,142.87,89.8663]
[1740535947039,18.71264886,142.92,142.87,82.867]
[1740535948131,6.9974,142.91,142.87,82.867]
[1740535948823,7.06,142.92,142.87,82.867]
[1740535950112,7.06,142.92,142.87,89.8662]
[1740535950312,0.063,142.92,142.87,89.8662]
[1740535951307,0.063,142.92,142.87,96.2262]
[1740535954635,0.063,142.92,142.87,89.227]
[1740535955233,0.063,142.92,142.87,82.867]
[1740535957141,18.71264886,142.92,142.87,82.867]
[1740535958937,6.9974,142.91,142.87,82.867]
[1740535966753,18.71264886,142.92,142.87,82.867]
[1740535966754,0.063,142.92,142.87,82.867]
[1740535966953,0.063,142.92,142.87,89.8663]
[1740535969931,0.063,142.92,142.87,97.8658]
[1740535973860,0.063,142.92,142.88,10.56273362]
[1740535974557,0.063,142.92,142.88,93.39973362]
[1740535975059,0.063,142.92,142.89,0.12549]
[1740535976037,0.063,142.92,142.9,6.9979]
[1740535976351,0.063,142.92,142.9,89.8349]
[1740535977647,0.063,142.92,142.9,82.837]
[1740535987151,0.063,142.92,142.9,89.8348]
[1740535990978,0.063,142.92,142.91,25.24062886]
[1740535992394,0.063,142.92,142.91,118.61544725]
[1740535993292,0.0001,142.92,142.91,118.61544725]
[1740535994369,0.0001,142.92,142.91,82.837]
[1740535996590,0.0001,142.92,142.91,89.8344]
[1740535997673,0.0001,142.92,142.91,82.837]
[1740536001510,0.0001,142.92,142.91,82.9]
[1740536001802,0.0001,142.92,142.91,82.93]
[1740536006634,0.0001,142.92,142.91,89.9274]
[1740536006798,0.0001,142.92,142.91,108.82802886]
[1740536007498,0.0001,142.92,142.91,89.9274]
[1740536008308,0.0001,142.92,142.91,93.39179629]
[1740536010005,0.0001,142.92,142.91,112.29242515]
[1740536010612,0.063,142.94,142.93,20.0]
[1740536010921,0.063,142.94,142.93,82.837]
[1740536014119,0.063,142.94,142.93,89.8334]
[1740536018626,0.063,142.94,142.93,82.837]
[1740536020725,0.063,142.94,142.93,89.8334]
[1740536021745,0.063,142.94,142.93,82.837]
[1740536023652,0.063,142.94,142.93,89.8334]
[1740536024840,0.063,142.94,142.93,82.837]
[1740536031866,0.063,142.94,142.93,89.8334]
[1740536034952,0.063,142.94,142.93,89.95889]
[1740536035154,0.063,142.94,142.93,82.837]
[1740536058375,0.063,142.94,142.91,0.093]
[1740536059278,7.0589,142.94,142.91,0.093]
[1740536064881,7.0589,142.94,142.91,82.93]
[1740536066980,0.063,142.94,142.91,82.93]
[1740536068082,0.063,142.94,142.91,89.9271]
[1740536069786,0.063,142.94,142.92,0.12549]
[1740536069993,0.063,142.94,142.93,34.15872886]
[1740536073775,0.063,142.94,142.93,98.22059]
[1740536074488,0.063,142.94,142.93,98.0951]
[1740536078278,0.063,142.94,142.93,116.99572886]
[1740536078678,0.063,142.94,142.93,98.22059]
[1740536079978,0.063,142.94,142.93,98.0951]
[1740536091517,0.063,142.94,142.93,91.48]
[1740536091724,0.063,142.94,142.93,82.837]
[1740536092218,0.063,142.94,142.91,82.93]
[1740536100815,0.063,142.94,142.91,89.9272]
[1740536101412,0.063,142.94,142.92,0.12549]
[1740536101736,0.063,142.94,142.92,82.96249]
[1740536102109,0.063,142.94,142.93,6.9964]
[1740536104928,0.063,142.94,142.93,89.95889]
[1740536106338,0.063,142.94,142.93,108.73402886]
[1740536110421,0.063,142.94,142.93,89.8334]
[1740536111638,0.063,142.94,142.93,90.08438]
[1740536112428,0.063,142.95,142.94,0.12549]
[1740536112653,0.063,142.95,142.94,18.90062886]
[1740536112943,0.0001,142.95,142.94,101.73762886]
[1740536113249,0.0001,142.95,142.94,82.96249]
[1740536114324,0.0001,142.95,142.94,90.08388]
[1740536115623,0.0001,142.95,142.94,92.87956242]
[1740536115842,0.0001,142.95,142.94,82.837]
[1740536116628,0.0001,142.95,142.94,89.8329]
[1740536117446,0.0001,142.95,142.94,82.837]
[1740536117661,0.0001,142.95,142.94,89.8329]
[1740536118552,0.0001,142.95,142.94,90.08388]
[1740536118845,0.063,142.99,142.97,20.0]
[1740536119047,0.063,142.99,142.97,102.837]
[1740536120737,0.063,142.99,142.97,109.831]
[1740536120939,0.063,142.99,142.97,102.837]
[1740536121858,0.063,142.99,142.97,109.8313]
[1740536122029,0.063,142.99,142.97,102.837]
[1740536122352,0.063,142.99,142.97,109.8313]
[1740536122954,0.063,142.99,142.98,18.90062886]
[1740536123134,0.063,143.01,143.0,38.77513886]
[1740536123448,0.063,143.01,143.0,121.61213886]
[1740536123956,0.063,143.03,143.02,0.12549]
[1740536124146,0.063,143.03,143.02,6.44549]
[1740536124855,0.063,143.03,143.02,96.27449]
[1740536126230,0.063,143.03,143.02,115.04962886]
[1740536126431,0.063,143.03,143.02,116.68422886]
[1740536126649,0.0001,143.03,143.02,116.68422886]
[1740536127452,0.0001,143.03,143.02,121.27241315]
[1740536127955,0.063,143.07,143.05,20.0]
[1740536128132,0.063,143.07,143.05,102.837]
[1740536128326,0.063,143.07,143.05,82.837]
[1740536129933,0.063,143.07,143.05,89.8275]
[1740536130136,0.063,143.07,143.05,82.837]
[1740536130760,0.063,143.07,143.02,82.837]
[1740536135941,0.063,143.07,143.02,89.8289]
[1740536137370,0.063,143.07,143.02,82.837]
[1740536137868,1.5378,143.05,143.02,82.837]
[1740536138545,6.282,143.03,142.98,82.837]
[1740536138877,18.64964886,143.02,142.96,82.837]
[1740536139560,6.9925,143.01,142.96,82.837]
[1740536140364,87.382,143.03,142.96,89.8319]
[1740536140563,6.9921,143.02,142.96,89.8319]
[1740536141850,0.03,143.01,142.96,89.8319]
[1740536144374,0.03,143.01,142.97,0.12549]
[1740536144547,0.03,143.01,142.97,18.90062886]
[1740536145568,0.03,143.01,142.98,6.9939]
[1740536146372,0.03,143.01,142.99,0.12549]
[1740536146874,0.03,143.01,143.0,6.993]
[1740536149879,0.063,143.06,143.01,0.12549]
[1740536150194,0.063,143.06,143.01,82.837]
[1740536151785,0.063,143.06,143.01,89.8294]
[1740536154556,0.063,143.06,143.03,6.9915]
[1740536155668,0.063,143.06,143.04,0.12549]
[1740536155855,0.063,143.06,143.04,82.96249]
[1740536156678,0.063,143.06,143.05,6.9905]
[1740536156974,0.063,143.06,143.05,7.11599]
[1740536157563,0.063,143.06,143.05,25.89112886]
[1740536157763,0.0001,143.07,143.06,18.90062886]
[1740536157979,0.0001,143.07,143.06,25.22062886]
[1740536158150,0.0001,143.07,143.06,108.05762886]
[1740536158355,0.0001,143.07,143.06,109.10554566]
[1740536158655,0.0001,143.07,143.06,116.09554566]
[1740536159782,0.0001,143.07,143.06,96.27249]
[1740536159958,0.0001,143.07,143.06,96.39798]
[1740536160359,0.0001,143.07,143.06,115.04762886]
[1740536162885,0.0001,143.07,143.06,89.157]
[1740536163787,0.0001,143.07,143.06,82.837]
[1740536166381,0.0001,143.07,143.02,84.3808]
[1740536166686,0.0001,143.07,143.02,82.837]
[1740536171989,0.0001,143.07,143.02,89.8289]
[1740536172197,0.0001,143.07,143.02,82.837]
[1740536175764,0.0001,143.07,143.02,89.8288]
[1740536176095,0.0001,143.07,143.02,82.837]
[1740536176304,6.5141,143.06,143.0,129.603]
[1740536176504,103.37964886,143.05,143.0,0.063]
[1740536176794,19.64964886,143.03,143.0,0.063]
[1740536177099,18.64964886,143.03,143.0,0.063]
[1740536177270,19.64964886,143.03,143.0,0.063]
[1740536178195,6.992,143.02,143.0,0.063]
[1740536178994,89.0915,143.04,143.0,0.063]
[1740536180073,1.0,143.03,143.0,0.063]
[1740536180273,89.0915,143.04,143.0,0.063]
[1740536180686,1.0,143.03,143.0,0.063]